[Event "Betsys MČR v online bleskovém šachu 2021"]
[Site "Chess.com"]
[Date "2021.04.17"]
[Round "4"]
[White "Staci_fiknout_Navara_Plat"]
[Black "pkozubik"]
[Result "1-0"]
[WhiteElo "1661"]
[BlackElo "1139"]
[TimeControl "180+1"]
[EndTime "9:37:54 PDT"]
[Termination "Uživatel Staci_fiknout_Navara_Plat zvítězil na čas"]

1. c4 {[%clk 0:03:00.9]} 1... e5 {[%clk 0:02:46.7]} 2. Nc3 {[%clk 0:03:00.5]}
2... Bb4 {[%clk 0:02:44.5]} 3. g3 {[%clk 0:02:59]} 3... c6 {[%clk 0:02:40.8]} 4.
Bg2 {[%clk 0:02:58.7]} 4... d5 {[%clk 0:02:39.9]} 5. cxd5 {[%clk 0:02:59.6]}
5... Bxc3 {[%clk 0:02:37]} 6. dxc3 {[%clk 0:02:57.9]} 6... Nf6 {[%clk
0:02:31.4]} 7. Bg5 {[%clk 0:02:44.1]} 7... cxd5 {[%clk 0:02:24.6]} 8. Bxf6
{[%clk 0:02:43.9]} 8... Qxf6 {[%clk 0:02:16.1]} 9. Qxd5 {[%clk 0:02:41.2]} 9...
O-O {[%clk 0:02:14.8]} 10. Rd1 {[%clk 0:02:39.9]} 10... Nc6 {[%clk 0:02:01.7]}
11. Nf3 {[%clk 0:02:39.6]} 11... Be6 {[%clk 0:01:58.2]} 12. Qb5 {[%clk
0:02:33.5]} 12... Bxa2 {[%clk 0:01:45.1]} 13. O-O {[%clk 0:02:15.1]} 13... Be6
{[%clk 0:01:35.6]} 14. Qxb7 {[%clk 0:02:12.6]} 14... Ne7 {[%clk 0:01:31.9]} 15.
Qe4 {[%clk 0:01:42.4]} 15... Bf5 {[%clk 0:01:28.9]} 16. Qxe5 {[%clk 0:01:41.5]}
16... Qg6 {[%clk 0:01:22.1]} 17. Nh4 {[%clk 0:01:37.4]} 17... Qe6 {[%clk
0:01:12.6]} 18. Qxe6 {[%clk 0:01:31.7]} 18... Bxe6 {[%clk 0:01:11.1]} 19. Bxa8
{[%clk 0:01:30]} 19... Rxa8 {[%clk 0:01:11.8]} 20. Ra1 {[%clk 0:01:29.7]} 20...
a5 {[%clk 0:01:10.7]} 21. Rfd1 {[%clk 0:01:29.3]} 21... a4 {[%clk 0:01:09.9]}
22. Nf3 {[%clk 0:01:28.3]} 22... Nd5 {[%clk 0:01:07.8]} 23. Nd4 {[%clk
0:01:28.1]} 23... Bg4 {[%clk 0:01:04.1]} 24. f3 {[%clk 0:01:25.6]} 24... Bh5
{[%clk 0:01:00.1]} 25. Kf2 {[%clk 0:01:24.9]} 25... f6 {[%clk 0:00:54.9]} 26.
Ne6 {[%clk 0:01:14]} 26... Nb6 {[%clk 0:00:43.4]} 27. Rd8+ {[%clk 0:00:59.2]}
27... Rxd8 {[%clk 0:00:43.2]} 28. Nxd8 {[%clk 0:01:00.1]} 28... Nc4 {[%clk
0:00:42.3]} 29. Rxa4 {[%clk 0:00:53.1]} 29... Nxb2 {[%clk 0:00:41.6]} 30. Ra8
{[%clk 0:00:52.2]} 30... Nd1+ {[%clk 0:00:41.5]} 31. Ke1 {[%clk 0:00:51.9]}
31... Nxc3 {[%clk 0:00:41.3]} 32. Nc6+ {[%clk 0:00:40.6]} 32... Kf7 {[%clk
0:00:39.6]} 33. Ra7+ {[%clk 0:00:39.4]} 33... Kg6 {[%clk 0:00:36.1]} 34. g4
{[%clk 0:00:35.7]} 34... Nb5 {[%clk 0:00:33.1]} 35. gxh5+ {[%clk 0:00:34.7]}
35... Kxh5 {[%clk 0:00:32.6]} 36. Rxg7 {[%clk 0:00:35.2]} 36... Kh6 {[%clk
0:00:32.3]} 37. Rg8 {[%clk 0:00:33.7]} 37... Nd6 {[%clk 0:00:28.4]} 38. Kf2
{[%clk 0:00:32.8]} 38... f5 {[%clk 0:00:28]} 39. Nd4 {[%clk 0:00:31.3]} 39... f4
{[%clk 0:00:27.1]} 40. Ne6 {[%clk 0:00:30.8]} 40... Nf5 {[%clk 0:00:22.2]} 41.
Nxf4 {[%clk 0:00:22.1]} 41... Ng3 {[%clk 0:00:17.9]} 42. Nd5 {[%clk 0:00:16.2]}
42... Nf5 {[%clk 0:00:14.2]} 43. e4 {[%clk 0:00:16.1]} 43... Nd4 {[%clk
0:00:12.7]} 44. f4 {[%clk 0:00:16]} 44... Ne6 {[%clk 0:00:12]} 45. f5 {[%clk
0:00:15.4]} 45... Nf4 {[%clk 0:00:09.1]} 46. Rg1 {[%clk 0:00:10.5]} 46... Kh5
{[%clk 0:00:03.9]} 47. Rg3 {[%clk 0:00:09.4]} 47... Kh4 {[%clk 0:00:01.2]} 48.
Kf3 {[%clk 0:00:05.9]} 1-0

[Event "Betsys MČR v online bleskovém šachu 2021"]
[Site "Chess.com"]
[Date "2021.04.17"]
[Round "4"]
[White "honzasoucek"]
[Black "Maximon2012"]
[Result "1-0"]
[WhiteElo "1636"]
[BlackElo "1093"]
[TimeControl "180+1"]
[EndTime "9:37:54 PDT"]
[Termination "Uživatel honzasoucek zvítězil matem"]

1. e4 {[%clk 0:03:00.9]} 1... e5 {[%clk 0:03:00.3]} 2. Nf3 {[%clk 0:03:01]} 2...
Nc6 {[%clk 0:03:00.8]} 3. d4 {[%clk 0:03:01.5]} 3... exd4 {[%clk 0:02:59.5]} 4.
Nxd4 {[%clk 0:03:01.9]} 4... Nxd4 {[%clk 0:02:58.6]} 5. Qxd4 {[%clk 0:03:00.9]}
5... Nf6 {[%clk 0:02:58.1]} 6. Nc3 {[%clk 0:02:57.7]} 6... Be7 {[%clk
0:02:53.5]} 7. Bg5 {[%clk 0:02:55.8]} 7... d6 {[%clk 0:02:52.5]} 8. O-O-O {[%clk
0:02:53]} 8... Bd7 {[%clk 0:02:52.1]} 9. f3 {[%clk 0:02:46.2]} 9... O-O {[%clk
0:02:51.3]} 10. g4 {[%clk 0:02:45.5]} 10... c5 {[%clk 0:02:47]} 11. Qd2 {[%clk
0:02:38.4]} 11... Qb6 {[%clk 0:02:34.1]} 12. e5 {[%clk 0:01:45.4]} 12... dxe5
{[%clk 0:01:39.5]} 13. Bxf6 {[%clk 0:01:43.3]} 13... Bxf6 {[%clk 0:01:34.9]} 14.
Qxd7 {[%clk 0:01:40.6]} 14... Rfd8 {[%clk 0:01:34.5]} 15. Qb5 {[%clk 0:01:30.7]}
15... Rxd1+ {[%clk 0:01:31.2]} 16. Nxd1 {[%clk 0:01:16.6]} 16... Qxb5 {[%clk
0:01:27.5]} 17. Bxb5 {[%clk 0:01:16.8]} 17... Rd8 {[%clk 0:01:27.1]} 18. c3
{[%clk 0:01:08.4]} 18... a6 {[%clk 0:01:23.9]} 19. Ba4 {[%clk 0:01:02.7]} 19...
b5 {[%clk 0:01:22.6]} 20. Bc2 {[%clk 0:01:00.3]} 20... h6 {[%clk 0:01:18.5]} 21.
Nf2 {[%clk 0:00:47.3]} 21... a5 {[%clk 0:01:13.5]} 22. Ne4 {[%clk 0:00:44.3]}
22... Be7 {[%clk 0:01:09.3]} 23. Rd1 {[%clk 0:00:44]} 23... Rxd1+ {[%clk
0:01:07.4]} 24. Kxd1 {[%clk 0:00:44.6]} 24... c4 {[%clk 0:01:07.7]} 25. Ke2
{[%clk 0:00:43]} 25... Kf8 {[%clk 0:01:03.2]} 26. b3 {[%clk 0:00:42.6]} 26...
cxb3 {[%clk 0:00:59.3]} 27. axb3 {[%clk 0:00:43]} 27... Ke8 {[%clk 0:00:59.4]}
28. Bd3 {[%clk 0:00:43]} 28... b4 {[%clk 0:00:57.4]} 29. cxb4 {[%clk 0:00:41.8]}
29... Bxb4 {[%clk 0:00:55.5]} 30. Bb5+ {[%clk 0:00:42.1]} 30... Ke7 {[%clk
0:00:53.6]} 31. Kd3 {[%clk 0:00:42.6]} 31... f6 {[%clk 0:00:52.3]} 32. Kc4
{[%clk 0:00:40.5]} 32... Kd8 {[%clk 0:00:48.8]} 33. Kd5 {[%clk 0:00:38.2]} 33...
Kc7 {[%clk 0:00:48]} 34. Ke6 {[%clk 0:00:34.3]} 34... Kb6 {[%clk 0:00:32.8]} 35.
Ba4 {[%clk 0:00:34.1]} 35... Bc5 {[%clk 0:00:26.1]} 36. Nxc5 {[%clk 0:00:30.5]}
36... Kxc5 {[%clk 0:00:24.7]} 37. Kf7 {[%clk 0:00:31]} 37... Kb4 {[%clk
0:00:24.4]} 38. Kxg7 {[%clk 0:00:30.4]} 38... Kc5 {[%clk 0:00:24.3]} 39. Kxf6
{[%clk 0:00:30.7]} 39... Kd6 {[%clk 0:00:24.7]} 40. h4 {[%clk 0:00:29.8]} 40...
Kc7 {[%clk 0:00:22.7]} 41. Kxe5 {[%clk 0:00:28.5]} 41... Kd8 {[%clk 0:00:21.3]}
42. Kf6 {[%clk 0:00:29]} 42... Kc7 {[%clk 0:00:20.4]} 43. g5 {[%clk 0:00:29.4]}
43... hxg5 {[%clk 0:00:18.5]} 44. hxg5 {[%clk 0:00:30]} 44... Kd6 {[%clk
0:00:18.5]} 45. g6 {[%clk 0:00:30.3]} 45... Kd5 {[%clk 0:00:18.2]} 46. g7 {[%clk
0:00:30.9]} 46... Kd4 {[%clk 0:00:17.6]} 47. g8=Q {[%clk 0:00:30.9]} 47... Ke3
{[%clk 0:00:18.1]} 48. Qd5 {[%clk 0:00:30.5]} 48... Kf2 {[%clk 0:00:18.7]} 49.
Bb5 {[%clk 0:00:29.5]} 49... Kg3 {[%clk 0:00:19.6]} 50. Kg5 {[%clk 0:00:28.7]}
50... Kf2 {[%clk 0:00:18.2]} 51. Qd4+ {[%clk 0:00:26.6]} 51... Kxf3 {[%clk
0:00:18.2]} 52. Qf4+ {[%clk 0:00:26.1]} 52... Kg2 {[%clk 0:00:16.6]} 53. Bc6+
{[%clk 0:00:26.2]} 53... Kg1 {[%clk 0:00:15.1]} 54. Qg3+ {[%clk 0:00:24.9]}
54... Kf1 {[%clk 0:00:13.8]} 55. Bg2+ {[%clk 0:00:23]} 55... Kg1 {[%clk
0:00:12.2]} 56. Bf3+ {[%clk 0:00:22.1]} 56... Kf1 {[%clk 0:00:05.2]} 57. Qg2+
{[%clk 0:00:22.6]} 57... Ke1 {[%clk 0:00:03.9]} 58. Qe2# {[%clk 0:00:23.2]} 1-0

[Event "Betsys MČR v online bleskovém šachu 2021"]
[Site "Chess.com"]
[Date "2021.04.17"]
[Round "4"]
[White "MartinHollan"]
[Black "Vesselovsky52"]
[Result "1-0"]
[WhiteElo "2587"]
[BlackElo "2323"]
[TimeControl "180+1"]
[EndTime "9:38:00 PDT"]
[Termination "Uživatel MartinHollan zvítězil na čas"]

1. e4 {[%clk 0:03:00.9]} 1... c5 {[%clk 0:02:56.9]} 2. Nf3 {[%clk 0:03:00.6]}
2... g6 {[%clk 0:02:56.8]} 3. Nc3 {[%clk 0:02:57]} 3... Bg7 {[%clk 0:02:56]} 4.
d4 {[%clk 0:02:57]} 4... cxd4 {[%clk 0:02:54.7]} 5. Nxd4 {[%clk 0:02:57.2]} 5...
Nc6 {[%clk 0:02:54.4]} 6. Be3 {[%clk 0:02:56.7]} 6... Nf6 {[%clk 0:02:53.7]} 7.
Bc4 {[%clk 0:02:54.6]} 7... O-O {[%clk 0:02:52]} 8. Bb3 {[%clk 0:02:54.5]} 8...
d6 {[%clk 0:02:50.9]} 9. f3 {[%clk 0:02:51.8]} 9... Qa5 {[%clk 0:02:50.3]} 10.
O-O {[%clk 0:02:45.2]} 10... Nxd4 {[%clk 0:02:45.4]} 11. Bxd4 {[%clk 0:02:44.8]}
11... Be6 {[%clk 0:02:45.1]} 12. Qe1 {[%clk 0:02:36]} 12... Rfc8 {[%clk
0:02:40.1]} 13. Kh1 {[%clk 0:02:32.7]} 13... Nd7 {[%clk 0:02:26.1]} 14. Bxg7
{[%clk 0:02:28.7]} 14... Kxg7 {[%clk 0:02:25.6]} 15. f4 {[%clk 0:02:26.3]} 15...
Nf6 {[%clk 0:02:09.6]} 16. e5 {[%clk 0:02:10.6]} 16... dxe5 {[%clk 0:02:04.8]}
17. fxe5 {[%clk 0:02:08.5]} 17... Nd7 {[%clk 0:01:54.1]} 18. Nd5 {[%clk
0:01:44.6]} 18... Qxe1 {[%clk 0:01:40.3]} 19. Raxe1 {[%clk 0:01:43.8]} 19... Nc5
{[%clk 0:01:21.7]} 20. Nxe7 {[%clk 0:01:08.9]} 20... Re8 {[%clk 0:01:19.8]} 21.
Nd5 {[%clk 0:00:48.8]} 21... Nxb3 {[%clk 0:01:18.5]} 22. Nc7 {[%clk 0:00:37.1]}
22... Nd4 {[%clk 0:01:15.5]} 23. Nxa8 {[%clk 0:00:36.9]} 23... Rxa8 {[%clk
0:01:13.5]} 24. c3 {[%clk 0:00:36.4]} 24... Nc6 {[%clk 0:01:12.4]} 25. b3 {[%clk
0:00:34.9]} 25... Rd8 {[%clk 0:01:11.2]} 26. Rf2 {[%clk 0:00:35]} 26... Rd3
{[%clk 0:01:08.6]} 27. Rc2 {[%clk 0:00:25.8]} 27... a5 {[%clk 0:01:07.3]} 28. h3
{[%clk 0:00:23.8]} 28... h5 {[%clk 0:01:05.7]} 29. Kh2 {[%clk 0:00:22.6]} 29...
h4 {[%clk 0:01:02.1]} 30. Re4 {[%clk 0:00:21.1]} 30... g5 {[%clk 0:01:00.8]} 31.
b4 {[%clk 0:00:20.6]} 31... axb4 {[%clk 0:00:50.8]} 32. cxb4 {[%clk 0:00:20.5]}
32... Ra3 {[%clk 0:00:43.1]} 33. b5 {[%clk 0:00:18.4]} 33... Ne7 {[%clk
0:00:36.8]} 34. Rc7 {[%clk 0:00:14.7]} 34... Nf5 {[%clk 0:00:32.4]} 35. Rxb7
{[%clk 0:00:14.1]} 35... Bd5 {[%clk 0:00:31.1]} 36. Rg4 {[%clk 0:00:11.7]} 36...
Bxb7 {[%clk 0:00:23.8]} 37. Rxg5+ {[%clk 0:00:11.9]} 37... Kh6 {[%clk
0:00:20.2]} 38. Rxf5 {[%clk 0:00:11]} 38... Rxa2 {[%clk 0:00:20]} 39. Rf6+
{[%clk 0:00:05.6]} 39... Kg5 {[%clk 0:00:17.8]} 40. Kh1 {[%clk 0:00:05.8]} 40...
Rxg2 {[%clk 0:00:10.8]} 41. Rb6 {[%clk 0:00:05.4]} 41... Be4 {[%clk 0:00:09]}
42. Rf6 {[%clk 0:00:03.4]} 42... Rb2+ {[%clk 0:00:06.3]} 43. Kg1 {[%clk
0:00:03.7]} 43... Rxb5 {[%clk 0:00:05.1]} 44. Rxf7 {[%clk 0:00:04.1]} 44... Rxe5
{[%clk 0:00:04.1]} 45. Rg7+ {[%clk 0:00:04.6]} 45... Kf4 {[%clk 0:00:03.3]} 46.
Rc7 {[%clk 0:00:05.5]} 46... Kg3 {[%clk 0:00:02.2]} 47. Rc3+ {[%clk 0:00:05]}
47... Bf3 {[%clk 0:00:01.5]} 48. Rc1 {[%clk 0:00:05.9]} 1-0

[Event "Betsys MČR v online bleskovém šachu 2021"]
[Site "Chess.com"]
[Date "2021.04.17"]
[Round "4"]
[White "doktorovak"]
[Black "Millbo64"]
[Result "0-1"]
[WhiteElo "1669"]
[BlackElo "2001"]
[TimeControl "180+1"]
[EndTime "9:38:00 PDT"]
[Termination "Uživatel Millbo64 zvítězil na čas"]

1. e4 {[%clk 0:03:00.5]} 1... c6 {[%clk 0:02:59.2]} 2. Nf3 {[%clk 0:03:00.3]}
2... d5 {[%clk 0:02:58.9]} 3. exd5 {[%clk 0:03:00.4]} 3... cxd5 {[%clk
0:02:58.9]} 4. d4 {[%clk 0:02:57.5]} 4... Nf6 {[%clk 0:02:58.4]} 5. Bd3 {[%clk
0:02:56.6]} 5... Bg4 {[%clk 0:02:58.1]} 6. h3 {[%clk 0:02:54.9]} 6... Bh5 {[%clk
0:02:57]} 7. c3 {[%clk 0:02:54.6]} 7... e6 {[%clk 0:02:56.8]} 8. Bg5 {[%clk
0:02:54.1]} 8... Be7 {[%clk 0:02:55.9]} 9. Nbd2 {[%clk 0:02:51.9]} 9... O-O
{[%clk 0:02:54.8]} 10. O-O {[%clk 0:02:51.3]} 10... Nbd7 {[%clk 0:02:54.8]} 11.
Qc2 {[%clk 0:02:50.1]} 11... Bg6 {[%clk 0:02:53.4]} 12. Ne5 {[%clk 0:02:48]}
12... Nxe5 {[%clk 0:02:51.8]} 13. dxe5 {[%clk 0:02:47.2]} 13... Nd7 {[%clk
0:02:51.9]} 14. Bxe7 {[%clk 0:02:46]} 14... Qxe7 {[%clk 0:02:52.8]} 15. f4
{[%clk 0:02:45.5]} 15... Bxd3 {[%clk 0:02:47.2]} 16. Qxd3 {[%clk 0:02:44.3]}
16... a6 {[%clk 0:02:42.8]} 17. Rae1 {[%clk 0:02:35.7]} 17... Qc5+ {[%clk
0:02:30.1]} 18. Kh2 {[%clk 0:02:32.9]} 18... g6 {[%clk 0:02:29.3]} 19. Nf3
{[%clk 0:02:25.8]} 19... Rfc8 {[%clk 0:02:23.2]} 20. Ng5 {[%clk 0:02:23.6]}
20... h6 {[%clk 0:02:19.8]} 21. Nf3 {[%clk 0:02:22.1]} 21... Qc4 {[%clk
0:02:17.9]} 22. Qb1 {[%clk 0:02:21.4]} 22... Qxf4+ {[%clk 0:02:14.8]} 23. Kh1
{[%clk 0:02:18.9]} 23... Qf5 {[%clk 0:02:03.7]} 24. Qc1 {[%clk 0:02:15.5]} 24...
Qh5 {[%clk 0:01:53.9]} 25. Qf4 {[%clk 0:02:08.5]} 25... g5 {[%clk 0:01:44.3]}
26. Qe3 {[%clk 0:01:58.1]} 26... Rc4 {[%clk 0:01:41.5]} 27. Nd4 {[%clk 0:01:54]}
27... Rac8 {[%clk 0:01:21.9]} 28. Rf2 {[%clk 0:01:53.3]} 28... Nf8 {[%clk
0:01:12.2]} 29. Ref1 {[%clk 0:01:52.4]} 29... R8c7 {[%clk 0:01:11]} 30. Rf6
{[%clk 0:01:31.8]} 30... Nh7 {[%clk 0:00:47.1]} 31. R6f2 {[%clk 0:01:12.7]}
31... b5 {[%clk 0:00:46.6]} 32. Kh2 {[%clk 0:00:41.2]} 32... Qg6 {[%clk
0:00:42.8]} 33. Qf3 {[%clk 0:00:37.2]} 33... b4 {[%clk 0:00:36.1]} 34. Ne2
{[%clk 0:00:30.3]} 34... bxc3 {[%clk 0:00:35.4]} 35. bxc3 {[%clk 0:00:29.6]}
35... Qe4 {[%clk 0:00:30.3]} 36. Qh5 {[%clk 0:00:23.6]} 36... Qxe5+ {[%clk
0:00:29]} 37. Kh1 {[%clk 0:00:22.5]} 37... Qg7 {[%clk 0:00:27.2]} 38. Rf3 {[%clk
0:00:16.9]} 38... Qg6 {[%clk 0:00:26.1]} 39. Qg4 {[%clk 0:00:15.7]} 39... Rxg4
{[%clk 0:00:25.2]} 40. hxg4 {[%clk 0:00:15]} 40... h5 {[%clk 0:00:25]} 41. gxh5
{[%clk 0:00:14]} 41... Qxh5+ {[%clk 0:00:25.1]} 42. Kg1 {[%clk 0:00:14.9]} 42...
f5 {[%clk 0:00:23.1]} 43. Nd4 {[%clk 0:00:14.3]} 43... Qg6 {[%clk 0:00:21.9]}
44. Re1 {[%clk 0:00:13.4]} 44... Re7 {[%clk 0:00:20.3]} 45. Rfe3 {[%clk
0:00:13.1]} 45... Nf8 {[%clk 0:00:19]} 46. Nc6 {[%clk 0:00:12.2]} 46... Re8
{[%clk 0:00:18.7]} 47. Ne5 {[%clk 0:00:12.2]} 47... Qf6 {[%clk 0:00:18.1]} 48.
Nc6 {[%clk 0:00:09]} 48... f4 {[%clk 0:00:18.1]} 49. Re5 {[%clk 0:00:08.4]}
49... Kf7 {[%clk 0:00:17.4]} 50. R5e2 {[%clk 0:00:06]} 50... Rc8 {[%clk
0:00:17.3]} 51. Ne5+ {[%clk 0:00:05]} 51... Kg7 {[%clk 0:00:17.4]} 52. Rc1
{[%clk 0:00:03.6]} 52... Rc4 {[%clk 0:00:15.7]} 53. Nxc4 {[%clk 0:00:03.1]}
53... dxc4 {[%clk 0:00:16.1]} 54. Rce1 {[%clk 0:00:02.2]} 54... Qxc3 {[%clk
0:00:16]} 0-1

[Event "Betsys MČR v online bleskovém šachu 2021"]
[Site "Chess.com"]
[Date "2021.04.17"]
[Round "4"]
[White "matyson523"]
[Black "Krtecci"]
[Result "1-0"]
[WhiteElo "1813"]
[BlackElo "2089"]
[TimeControl "180+1"]
[EndTime "9:38:02 PDT"]
[Termination "Uživatel matyson523 zvítězil matem"]

1. e4 {[%clk 0:03:00.9]} 1... e5 {[%clk 0:02:26.5]} 2. Nf3 {[%clk 0:02:59.9]}
2... Nf6 {[%clk 0:02:25.8]} 3. Nc3 {[%clk 0:02:59.2]} 3... Nc6 {[%clk
0:02:24.2]} 4. Bb5 {[%clk 0:02:58.4]} 4... Bc5 {[%clk 0:02:19.9]} 5. O-O {[%clk
0:02:54.1]} 5... d6 {[%clk 0:02:18.8]} 6. d3 {[%clk 0:02:53.3]} 6... Bg4 {[%clk
0:02:15.4]} 7. Bg5 {[%clk 0:02:50.8]} 7... h6 {[%clk 0:02:14.3]} 8. Bh4 {[%clk
0:02:49.2]} 8... g5 {[%clk 0:02:12.4]} 9. Bg3 {[%clk 0:02:47.2]} 9... Qe7 {[%clk
0:02:10.9]} 10. Nd5 {[%clk 0:02:44.6]} 10... Qd8 {[%clk 0:02:10.5]} 11. h3
{[%clk 0:02:41]} 11... Bh5 {[%clk 0:02:07.1]} 12. d4 {[%clk 0:02:14.4]} 12...
exd4 {[%clk 0:02:05.1]} 13. Nxf6+ {[%clk 0:02:10.1]} 13... Qxf6 {[%clk
0:02:03.4]} 14. e5 {[%clk 0:02:09]} 14... dxe5 {[%clk 0:01:32]} 15. Bxe5 {[%clk
0:02:05.1]} 15... Qxe5 {[%clk 0:01:16.1]} 16. Nxe5 {[%clk 0:02:01.7]} 16... Bxd1
{[%clk 0:01:15.3]} 17. Raxd1 {[%clk 0:02:01.5]} 17... O-O {[%clk 0:01:01.4]} 18.
Bxc6 {[%clk 0:01:59.1]} 18... bxc6 {[%clk 0:01:02.3]} 19. Nd7 {[%clk 0:01:59.2]}
19... Bb6 {[%clk 0:00:53.3]} 20. Nxf8 {[%clk 0:01:58.3]} 20... Kxf8 {[%clk
0:00:54]} 21. Rfe1 {[%clk 0:01:57.8]} 21... Rb8 {[%clk 0:00:51.6]} 22. b3 {[%clk
0:01:56.8]} 22... c5 {[%clk 0:00:48.7]} 23. Re2 {[%clk 0:01:52]} 23... Ba5
{[%clk 0:00:48.1]} 24. Rd3 {[%clk 0:01:48.5]} 24... f6 {[%clk 0:00:44]} 25. g4
{[%clk 0:01:42]} 25... Kf7 {[%clk 0:00:44.2]} 26. Kg2 {[%clk 0:01:41.1]} 26...
Bc3 {[%clk 0:00:44.1]} 27. Kf3 {[%clk 0:01:40.2]} 27... Rb6 {[%clk 0:00:44.2]}
28. Re4 {[%clk 0:01:29.5]} 28... a5 {[%clk 0:00:39.3]} 29. a4 {[%clk 0:01:28.5]}
29... Rd6 {[%clk 0:00:37.1]} 30. Kg3 {[%clk 0:01:19.2]} 30... Rd5 {[%clk
0:00:35]} 31. f4 {[%clk 0:01:15.2]} 31... c6 {[%clk 0:00:30.7]} 32. f5 {[%clk
0:01:13.9]} 32... Re5 {[%clk 0:00:28.9]} 33. Rxe5 {[%clk 0:01:10.7]} 33... fxe5
{[%clk 0:00:28.9]} 34. Kf3 {[%clk 0:01:09.4]} 34... Kf6 {[%clk 0:00:27.9]} 35.
Ke4 {[%clk 0:01:09.4]} 35... Be1 {[%clk 0:00:27.3]} 36. Rf3 {[%clk 0:00:59.4]}
36... Bd2 {[%clk 0:00:18.6]} 37. Rf2 {[%clk 0:00:58.7]} 37... Be1 {[%clk
0:00:18.2]} 38. Re2 {[%clk 0:00:58.6]} 38... Bc3 {[%clk 0:00:15.1]} 39. Kd3
{[%clk 0:00:57.1]} 39... Bb4 {[%clk 0:00:11.9]} 40. Kc4 {[%clk 0:00:57.2]} 40...
Ba3 {[%clk 0:00:12.3]} 41. c3 {[%clk 0:00:55.7]} 41... dxc3 {[%clk 0:00:07.1]}
42. Kxc3 {[%clk 0:00:55.8]} 42... Bb4+ {[%clk 0:00:05.9]} 43. Kc4 {[%clk
0:00:56]} 43... Ba3 {[%clk 0:00:05.7]} 44. Rd2 {[%clk 0:00:56.4]} 44... Ke7
{[%clk 0:00:05.1]} 45. Rd3 {[%clk 0:00:51.8]} 45... Bb4 {[%clk 0:00:04.7]} 46.
f6+ {[%clk 0:00:44.4]} 46... Kxf6 {[%clk 0:00:04.6]} 47. Rd6+ {[%clk 0:00:44.5]}
47... Kg7 {[%clk 0:00:04.7]} 48. Rxc6 {[%clk 0:00:44.7]} 48... Ba3 {[%clk
0:00:03.3]} 49. Re6 {[%clk 0:00:44.4]} 49... Bb2 {[%clk 0:00:02.9]} 50. Kxc5
{[%clk 0:00:43.9]} 50... Bd4+ {[%clk 0:00:03.3]} 51. Kd5 {[%clk 0:00:42.5]}
51... Kf7 {[%clk 0:00:04.2]} 52. Rxe5 {[%clk 0:00:41.4]} 52... Bxe5 {[%clk
0:00:04.7]} 53. Kxe5 {[%clk 0:00:41.7]} 53... Ke7 {[%clk 0:00:05.4]} 54. Kd5
{[%clk 0:00:42]} 54... Kd7 {[%clk 0:00:05.2]} 55. Kc5 {[%clk 0:00:42.3]} 55...
Ke6 {[%clk 0:00:05.8]} 56. b4 {[%clk 0:00:42.4]} 56... axb4 {[%clk 0:00:05.4]}
57. Kxb4 {[%clk 0:00:43.3]} 57... Kd7 {[%clk 0:00:03.5]} 58. a5 {[%clk
0:00:43.5]} 58... Kc6 {[%clk 0:00:03.7]} 59. Kc4 {[%clk 0:00:43.8]} 59... Kb7
{[%clk 0:00:03.5]} 60. Kd5 {[%clk 0:00:44]} 60... Ka6 {[%clk 0:00:03.9]} 61. Ke6
{[%clk 0:00:44.3]} 61... Kxa5 {[%clk 0:00:04.5]} 62. Kf6 {[%clk 0:00:44.9]}
62... Kb5 {[%clk 0:00:05.4]} 63. Kg6 {[%clk 0:00:45]} 63... Kc5 {[%clk
0:00:06.3]} 64. Kxh6 {[%clk 0:00:45.4]} 64... Kd6 {[%clk 0:00:07.2]} 65. Kxg5
{[%clk 0:00:46.1]} 65... Ke7 {[%clk 0:00:07.5]} 66. Kh6 {[%clk 0:00:46.5]} 66...
Kf7 {[%clk 0:00:08.1]} 67. g5 {[%clk 0:00:46.6]} 67... Kg8 {[%clk 0:00:08.4]}
68. Kg6 {[%clk 0:00:47]} 68... Kh8 {[%clk 0:00:08.8]} 69. Kf7 {[%clk 0:00:46.5]}
69... Kh7 {[%clk 0:00:08.9]} 70. g6+ {[%clk 0:00:47]} 70... Kh6 {[%clk
0:00:06.5]} 71. g7 {[%clk 0:00:47.2]} 71... Kh5 {[%clk 0:00:05.8]} 72. g8=Q
{[%clk 0:00:47.3]} 72... Kh6 {[%clk 0:00:06.1]} 73. Qg6# {[%clk 0:00:46.8]} 1-0